bitfinex/quotes_SOLUSD_20250919
["timestamp","ask_amount","ask_price","bid_price","bid_amount"]
[1758249442857,0.16,247.19,247.18,6.18067637]
[1758249444984,0.16,247.19,247.18,32.18067637]
[1758249445176,0.16,247.19,247.18,5.50067637]
[1758249445763,0.16,247.19,247.18,6.21067637]
[1758249447485,0.16,247.19,247.18,32.21067637]
[1758249448190,0.16,247.19,247.18,44.35863855]
[1758249448367,0.16,247.19,247.18,42.19359694]
[1758249448570,0.16,247.19,247.18,32.21067637]
[1758249448777,0.16,247.19,247.18,31.50067637]
[1758249449167,0.16,247.19,247.18,32.21067637]
[1758249452383,0.16,247.19,247.18,33.83053585]
[1758249453679,0.16,247.19,247.18,64.91053585]
[1758249457288,1e-08,247.19,247.18,64.91053585]
[1758249458694,1e-08,247.19,247.18,33.12053585]
[1758249458877,1e-08,247.19,247.18,64.20053585]
[1758249459489,1e-08,247.19,247.18,64.91053585]
[1758249459691,0.71000001,247.19,247.18,1.61985948]
[1758249459891,0.71000001,247.19,247.16,1.45504161]
[1758249460088,0.71,247.18,247.16,1.45504161]
[1758249460290,1e-08,247.19,247.13,1.6500563]
[1758249460291,0.71,247.17,247.15,1.45504161]
[1758249460600,0.71,247.16,247.15,1.45504161]
[1758249462685,0.71,247.16,247.15,5.50116744]
[1758249462880,0.71,247.16,247.15,4.04612583]
[1758249463082,0.71,247.16,247.13,4.07629884]
[1758249463290,0.71,247.15,247.13,5.53134045]
[1758249463480,0.71,247.14,247.13,5.53134045]
[1758249464298,0.71,247.16,247.13,5.53134045]
[1758249464491,0.71,247.15,247.13,5.53134045]
[1758249465173,0.71,247.15,247.14,5.50133116]
[1758249466198,0.71,247.15,247.14,4.04628955]
[1758249471200,0.71,247.15,247.14,5.50133116]
[1758249471391,0.71,247.17,247.14,5.50133116]
[1758249471897,1e-08,247.19,247.16,1.45504161]
[1758249472088,0.71000001,247.19,247.16,1.45504161]
[1758249472405,0.71,247.18,247.16,1.45504161]
[1758249473109,1e-08,247.19,247.14,10.11572388]
[1758249473309,0.71,247.17,247.16,1.45504161]
[1758249473613,13.59559401,247.18,247.16,1.45504161]
[1758249474209,1e-08,247.19,247.17,2.16504161]
[1758249474503,1e-08,247.19,247.18,1.45504161]
[1758249475290,1e-08,247.19,247.16,14.16086744]
[1758249475491,1e-08,247.19,247.16,14.83086744]
[1758249479823,0.72000001,247.19,247.16,14.16086744]
[1758249480110,1e-08,247.19,247.18,1.45504161]
[1758249480611,0.72000001,247.19,247.17,1.45504161]
[1758249480816,0.72000001,247.19,247.18,4.04563476]
[1758249482009,0.72000001,247.19,247.15,4.04612583]
[1758249482198,0.72,247.18,247.16,1.45504161]
[1758249482514,0.72,247.18,247.17,1.45504161]
[1758249483010,1e-08,247.19,247.17,1.45504161]
[1758249483210,1e-08,247.19,247.18,1.45504161]
[1758249483402,1e-08,247.19,247.16,0.67]
[1758249483712,1e-08,247.19,247.18,1.45504161]
[1758249483914,0.72000001,247.19,247.18,1.45504161]
[1758249484119,0.72,247.18,247.14,1.45504161]
[1758249484416,0.72,247.17,247.14,4.04621849]
[1758249484616,1e-08,247.19,247.14,4.04621849]
[1758249484817,0.72,247.16,247.14,4.04621849]
[1758249485025,0.72,247.15,247.13,0.03]
[1758249485195,0.72,247.14,247.13,0.03]
[1758249486022,13.59559401,247.17,247.13,0.03]
[1758249486197,0.72,247.15,247.13,0.03]
[1758249487601,13.59559401,247.17,247.13,0.03]
[1758249487802,0.72,247.16,247.13,0.03]
[1758249488718,0.72,247.16,247.13,1.48504161]
[1758249489023,0.72,247.15,247.13,1.48504161]
[1758249489913,0.72,247.15,247.13,2.30413839]
[1758249490221,0.72,247.15,247.14,2.27413839]
[1758249490808,0.72,247.15,247.13,0.03]
[1758249491009,0.72,247.15,247.14,2.27413839]
[1758249491223,14.31559401,247.15,247.14,2.27413839]
[1758249491399,13.59559401,247.14,247.13,2.30413839]
[1758249491606,14.31559401,247.14,247.13,2.30413839]
[1758249492324,13.59559401,247.15,247.13,2.30413839]
[1758249492505,1e-08,247.19,247.14,2.27413839]
[1758249492711,45.39559401,247.18,247.17,2.27413839]
[1758249493106,1e-08,247.19,247.17,2.94413839]
[1758249493421,1e-08,247.19,247.18,6.31977315]
[1758249493899,1e-08,247.19,247.18,6.98977315]
[1758249496326,1e-08,247.19,247.18,6.31977315]
[1758249501734,1e-08,247.19,247.18,6.98977315]
[1758249502107,1e-08,247.19,247.18,7.01977315]
[1758249506349,1e-08,247.19,247.18,8.63956703]
[1758249507519,1e-08,247.19,247.18,7.96956703]
[1758249507924,1e-08,247.19,247.18,8.61956703]
[1758249510843,1e-08,247.19,247.18,7.96956703]
[1758249511034,1e-08,247.19,247.18,8.61956703]
[1758249512633,1e-08,247.19,247.18,6.99977315]
[1758249513033,1e-08,247.19,247.18,8.61963263]
[1758249517971,1e-08,247.21,247.2,26.0]
[1758249518275,12.62622982,247.26,247.2,61.60827678]
[1758249518436,12.62622982,247.26,247.25,2.27413839]
[1758249518836,13.34622982,247.26,247.25,2.27413839]
[1758249521341,13.34622982,247.26,247.25,6.31862777]
[1758249523834,13.34622982,247.26,247.24,2.27413839]
[1758249524032,0.72,247.25,247.24,2.27413839]
[1758249525347,0.72,247.25,247.24,6.31879135]
[1758249528547,0.72,247.25,247.21,2.27413839]
[1758249528747,0.72,247.24,247.21,2.27413839]
[1758249528941,0.72,247.23,247.21,2.27413839]
[1758249529141,0.72,247.22,247.21,2.27413839]
[1758249529339,0.72,247.22,247.21,6.31920086]
[1758249530743,0.72,247.24,247.21,6.31920086]
[1758249530946,14.31559401,247.24,247.23,2.27413839]
[1758249532644,14.31559401,247.24,247.21,4.04506247]
[1758249532836,13.59559401,247.24,247.23,2.27413839]
[1758249533157,13.59559401,247.24,247.22,2.27413839]
[1758249533355,0.72,247.23,247.22,2.27413839]
[1758249533540,16.5897324,247.23,247.18,0.03]
[1758249533862,0.72,247.22,247.18,0.03]
[1758249534164,13.59559401,247.2,247.18,0.03]
[1758249534532,14.31559401,247.19,247.18,0.03]
[1758249538755,45.37559401,247.19,247.18,0.03]
[1758249539465,47.93405554,247.19,247.18,0.03]
[1758249540767,14.31559401,247.19,247.18,0.03]
[1758249540957,45.37559401,247.19,247.18,0.03]
[1758249541266,14.31559401,247.19,247.18,0.03]
[1758249541672,45.37559401,247.19,247.18,0.03]
[1758249542446,45.37559401,247.19,247.18,4.07563476]
[1758249542968,45.33559401,247.19,247.18,4.07563476]
[1758249543861,45.33559401,247.19,247.18,0.03]
[1758249544373,47.6097324,247.19,247.18,0.03]
[1758249545968,45.33559401,247.19,247.18,0.03]
[1758249546173,47.6097324,247.19,247.18,0.03]
[1758249546375,14.27559401,247.19,247.18,0.03]
[1758249546581,44.65559401,247.19,247.18,0.03]
[1758249546756,45.33559401,247.19,247.18,0.03]
[1758249549774,14.27559401,247.19,247.18,0.03]
[1758249549979,44.65559401,247.19,247.18,0.03]
[1758249550384,44.65559401,247.19,247.18,4.07563476]
[1758249554086,13.59559401,247.19,247.18,4.07563476]
[1758249554378,44.65559401,247.19,247.18,4.07563476]
[1758249555977,13.59559401,247.19,247.18,4.07563476]
[1758249556380,44.65559401,247.19,247.18,4.07563476]
[1758249557984,13.59559401,247.19,247.18,4.07563476]
[1758249558171,44.65559401,247.19,247.18,4.07563476]
[1758249559577,44.65559401,247.19,247.18,0.03]
[1758249560485,45.33559401,247.19,247.18,0.03]
[1758249560875,44.65559401,247.19,247.18,0.74]
[1758249561075,44.65559401,247.19,247.18,2.19510048]
[1758249561274,44.65559401,247.19,247.18,6.24073524]
[1758249561496,44.65559401,247.19,247.18,5.53073524]
[1758249562490,44.65559401,247.19,247.18,0.03]
[1758249563485,31.06,247.19,247.18,0.03]
[1758249563693,31.06,247.19,247.18,4.78563476]
[1758249564703,31.06,247.19,247.18,4.07563476]
[1758249564872,14.33559401,247.22,247.18,4.07563476]
[1758249565078,45.35559401,247.21,247.18,4.07563476]
[1758249565382,14.29559401,247.21,247.18,4.07563476]
[1758249565579,31.06,247.2,247.18,4.07563476]
[1758249565986,14.29559401,247.21,247.18,4.07563476]
[1758249566186,31.06,247.19,247.18,4.07563476]
[1758249569100,31.06,247.19,247.18,0.03]
[1758249569297,14.29559401,247.21,247.18,0.03]
[1758249569476,31.76,247.2,247.18,0.03]
[1758249573278,0.7,247.2,247.18,0.03]
[1758249573478,31.06,247.19,247.18,0.03]
[1758249577094,0.7,247.2,247.18,0.03]
[1758249577280,31.04,247.19,247.18,0.03]
[1758249579886,0.7,247.2,247.18,0.03]
[1758249580082,31.04,247.19,247.18,0.03]
[1758249582197,0.06,247.22,247.18,0.03]
[1758249582400,0.06,247.22,247.2,1.45510048]
[1758249582783,0.06,247.22,247.21,1.45510048]
[1758249583408,0.06,247.22,247.21,13.60404656]
[1758249584111,0.06,247.22,247.21,14.28404656]
[1758249584789,0.06,247.22,247.21,16.87408988]
[1758249587005,0.06,247.22,247.21,16.19408988]
[1758249587408,0.06,247.22,247.21,17.64919036]
[1758249587616,0.06,247.22,247.21,18.32919036]
[1758249590114,0.06,247.22,247.21,17.64919036]
[1758249590311,0.06,247.22,247.21,16.19408988]
[1758249592203,0.06,247.22,247.21,16.22408988]
[1758249597321,0.06,247.22,247.21,17.67919036]
[1758249598023,0.06,247.22,247.21,18.35919036]
[1758249600529,0.06,247.22,247.21,17.67919036]
[1758249601638,0.06,247.22,247.21,18.35919036]
[1758249601998,0.06,247.22,247.21,12.17894608]
[1758249602301,46.81069449,247.22,247.21,12.17894608]
[1758249602528,46.81069449,247.22,247.21,0.03]
[1758249602837,50.85567466,247.22,247.21,0.03]
[1758249604105,46.81069449,247.22,247.21,0.03]
[1758249604315,14.31559401,247.22,247.21,0.03]
[1758249604501,45.35559401,247.22,247.21,0.03]
[1758249605222,0.06,247.22,247.21,0.03]
[1758249605430,0.06,247.22,247.21,1.48510048]
[1758249605431,44.69559401,247.22,247.21,1.48510048]
[1758249605931,13.65559401,247.22,247.21,1.48510048]
[1758249606128,44.69559401,247.22,247.21,3.10509116]
[1758249606333,45.35559401,247.22,247.21,7.15023496]
[1758249606517,44.69559401,247.22,247.21,7.15023496]
[1758249606710,45.35559401,247.22,247.21,1.64999068]
[1758249606913,45.35559401,247.22,247.21,0.03]
[1758249608920,0.06,247.22,247.21,2.16510048]
[1758249609312,0.06,247.22,247.21,14.31404656]
[1758249613053,0.06,247.22,247.21,18.35919036]
[1758249613811,0.06,247.22,247.21,19.17618533]
[1758249619043,0.06,247.22,247.21,18.49618533]
[1758249619429,0.72,247.22,247.21,18.49618533]
[1758249619832,0.72,247.22,247.21,16.22408988]
[1758249620028,0.72,247.22,247.21,12.17894608]
[1758249620541,0.72,247.22,247.21,16.22408988]
[1758249620733,0.06,247.22,247.21,19.17618533]
[1758249621422,0.06,247.22,247.21,18.49618533]
[1758249621725,0.06,247.22,247.21,19.17618533]
[1758249623757,0.06,247.22,247.21,18.49618533]
[1758249626141,0.77,247.22,247.21,16.22408988]
[1758249626352,0.77,247.22,247.21,18.49618533]
[1758249626726,0.77,247.22,247.21,16.22408988]
[1758249628146,14.36559401,247.22,247.21,0.03]
[1758249628722,16.63768946,247.22,247.21,0.03]
[1758249628946,47.65768946,247.22,247.21,0.03]
[1758249634354,45.38559401,247.22,247.21,0.03]
[1758249634534,51.70266963,247.22,247.21,0.03]
[1758249635758,51.98699277,247.22,247.21,0.03]
[1758249643036,20.96699277,247.22,247.21,0.03]
[1758249643259,51.98699277,247.22,247.21,0.03]
[1758249643865,49.71489732,247.22,247.21,0.03]
[1758249644042,51.98699277,247.22,247.21,0.03]
[1758249646967,77.98699277,247.22,247.21,0.03]
[1758249647963,46.96699277,247.22,247.21,0.03]
[1758249648167,77.98699277,247.22,247.21,0.03]
[1758249653146,77.27699277,247.22,247.21,0.03]
[1758249653347,13.65559401,247.22,247.21,0.72]
[1758249653569,44.67559401,247.22,247.21,0.72]
[1758249660659,13.65559401,247.22,247.21,0.72]
[1758249660866,13.65559401,247.22,247.21,7.03723925]
[1758249661155,44.67559401,247.22,247.21,7.03723925]
[1758249670087,13.65559401,247.22,247.21,7.03723925]
[1758249670280,44.67559401,247.22,247.21,7.03723925]
[1758249671884,13.65559401,247.22,247.21,7.03723925]
[1758249672185,0.06,247.22,247.21,7.03723925]
[1758249673868,0.06,247.22,247.21,6.21936403]
[1758249683977,1e-08,247.22,247.21,12.03624495]
[1758249684172,1e-08,247.22,247.21,13.6557765]
[1758249691692,0.06,247.27,247.24,26.0]
[1758249691891,0.06,247.27,247.26,1.45422023]
[1758249692493,0.06,247.27,247.26,2.15422023]
[1758249693899,0.06,247.27,247.26,6.19854604]
[1758249696593,0.06,247.27,247.26,17.64306583]
[1758249698014,0.06,247.27,247.26,5.49854604]
[1758249698412,0.75,247.27,247.26,5.49854604]
[1758249698614,0.06,247.27,247.26,5.49854604]
[1758249699993,0.75,247.27,247.26,5.49854604]
[1758249700509,0.06,247.27,247.26,5.49854604]
[1758249701315,0.06,247.27,247.25,4.04448938]
[1758249701820,0.06,247.27,247.26,1.45422023]
[1758249702897,0.06,247.27,247.26,2.15422023]
[1758249703297,0.06,247.27,247.26,40.29874001]
[1758249703597,0.06,247.27,247.26,44.34306582]
[1758249722135,0.06,247.27,247.26,43.64306582]
[1758249722334,0.06,247.27,247.26,74.62306582]
[1758249727560,0.75,247.27,247.26,12.14451978]
[1758249727727,14.34559401,247.27,247.26,12.14451978]
[1758249728154,14.34559401,247.27,247.25,0.03]
[1758249728347,14.34559401,247.27,247.25,4.07446569]
[1758249728655,14.28559401,247.26,247.25,0.03]
[1758249731234,15.73981424,247.26,247.25,0.03]
[1758249731435,14.28559401,247.26,247.25,0.03]
[1758249736455,0.06,247.27,247.25,2.30267125]
[1758249736642,0.06,247.27,247.26,2.27267125]
[1758249736843,0.06,247.27,247.25,4.07481656]
[1758249737042,0.06,247.27,247.26,2.27267125]
[1758249737463,0.06,247.27,247.26,6.34748781]
[1758249737643,0.06,247.27,247.26,10.39181362]
[1758249738059,14.34559401,247.27,247.26,2.27267125]
[1758249738258,14.34559401,247.27,247.25,0.03]
[1758249738259,14.34559401,247.27,247.25,2.30267125]
[1758249738438,0.69,247.26,247.25,2.30267125]
[1758249738769,0.69,247.26,247.25,6.34715465]
[1758249739256,45.26559401,247.26,247.25,0.03]
[1758249740060,45.26559401,247.26,247.25,2.30267125]
[1758249740247,14.28559401,247.26,247.25,2.30267125]
[1758249740558,0.06,247.27,247.25,2.30267125]
[1758249740749,0.06,247.27,247.26,2.27267125]
[1758249741639,14.34559401,247.27,247.25,12.17697844]
[1758249741834,13.65559401,247.27,247.26,2.27267125]
[1758249742567,14.34559401,247.27,247.26,2.27267125]
[1758249742864,13.65559401,247.27,247.26,2.27267125]
[1758249743271,13.65559401,247.27,247.25,6.34708381]
[1758249744446,14.34559401,247.27,247.25,6.34708381]
[1758249744959,14.34559401,247.27,247.25,0.03]
[1758249745172,14.31559401,247.26,247.25,0.03]
[1758249745867,16.58826526,247.26,247.25,0.03]
[1758249746641,20.91691421,247.26,247.25,0.03]
[1758249747854,16.8725884,247.26,247.25,0.03]
[1758249751476,20.91691421,247.26,247.25,0.03]
[1758249757661,51.89691421,247.26,247.25,0.03]
[1758249759057,44.85991715,247.26,247.25,0.03]
[1758249759262,46.99042683,247.26,247.25,0.03]
[1758249759653,47.8525884,247.26,247.25,0.03]
[1758249760249,51.89691421,247.26,247.25,0.03]
[1758249760678,47.8525884,247.26,247.25,0.03]
[1758249761376,44.85991715,247.26,247.25,0.75]
[1758249761677,44.85991715,247.26,247.25,0.03]
[1758249762960,13.59559401,247.26,247.25,0.75]
[1758249763785,0.06,247.27,247.25,3.02267125]
[1758249764078,0.06,247.27,247.26,28.27267125]
[1758249764268,0.06,247.27,247.26,33.03699706]
[1758249767412,0.06,247.27,247.26,30.76432581]
[1758249767558,0.06,247.27,247.26,33.03699706]
[1758249767765,0.06,247.27,247.26,30.76432581]
[1758249767967,0.06,247.27,247.26,33.03699706]
[1758249768963,0.06,247.27,247.26,30.76432581]
[1758249769163,0.06,247.27,247.26,33.03699706]
[1758249769574,0.06,247.27,247.26,30.76432581]
[1758249769778,0.06,247.27,247.26,33.03699706]
[1758249775380,0.06,247.27,247.26,64.01699706]
[1758249776976,0.06,247.27,247.26,33.03699706]
[1758249777596,0.06,247.27,247.26,30.76432581]
[1758249777796,0.06,247.27,247.26,33.03699706]
[1758249778294,0.06,247.27,247.26,32.31699706]
[1758249778889,0.78,247.27,247.26,30.04432581]
[1758249779280,0.78,247.27,247.26,4.04432581]
[1758249779481,14.37559401,247.27,247.26,4.04432581]
[1758249780298,14.37559401,247.27,247.25,0.03]
[1758249780496,14.31559401,247.26,247.25,0.03]
[1758249780800,16.58826526,247.26,247.25,0.03]
[1758249780985,45.27559401,247.26,247.25,0.03]
[1758249781381,47.54826526,247.26,247.25,0.03]
[1758249782705,45.27559401,247.26,247.25,0.03]
[1758249783409,47.54826526,247.26,247.25,0.03]
[1758249784499,45.27559401,247.26,247.25,0.03]
[1758249784704,44.55559401,247.26,247.25,0.03]
[1758249785089,45.27559401,247.26,247.25,0.03]
[1758249785713,47.8325884,247.26,247.25,0.03]
[1758249785918,51.87691421,247.26,247.25,0.03]
[1758249786289,0.06,247.27,247.25,3.02267125]
[1758249786613,0.06,247.27,247.26,7.03699706]
[1758249786913,0.06,247.27,247.26,4.76432581]
[1758249787204,0.06,247.27,247.26,7.03699706]
[1758249787590,0.06,247.27,247.26,6.31699706]
[1758249787912,0.06,247.27,247.25,2.30267125]
[1758249788110,0.78,247.27,247.25,0.03]
[1758249788485,0.78,247.27,247.25,4.07443005]
[1758249789485,0.06,247.27,247.25,4.07443005]
[1758249790785,0.06,247.27,247.25,0.03]
[1758249792295,0.72,247.26,247.25,0.03]
[1758249792692,0.06,247.27,247.25,0.03]
[1758249792887,0.72,247.26,247.25,0.03]
[1758249793291,2.99267125,247.26,247.25,0.03]
[1758249794020,3.27699439,247.26,247.25,0.03]
[1758249794597,47.8525884,247.26,247.25,0.03]
[1758249795010,51.89691421,247.26,247.25,0.03]
[1758249797822,51.07902994,247.26,247.25,0.03]
[1758249798002,52.53381692,247.26,247.25,0.03]
[1758249798323,51.07902994,247.26,247.25,0.03]
[1758249800323,16.05470413,247.26,247.25,0.03]
[1758249800499,46.31470413,247.26,247.25,0.03]
[1758249800698,44.85991715,247.26,247.25,0.03]
[1758249800893,73.53016427,247.26,247.25,0.03]
[1758249802329,77.57449008,247.26,247.25,0.03]
[1758249802628,77.63449008,247.26,247.25,0.03]
[1758249803612,79.08927706,247.26,247.25,0.03]
[1758249804318,77.63449008,247.26,247.25,0.03]
[1758249806999,79.08927706,247.26,247.25,0.03]
[1758249807611,77.63449008,247.26,247.25,0.03]
[1758249807810,42.32584113,247.26,247.25,0.03]
[1758249808014,73.32584113,247.26,247.25,0.03]
[1758249808203,73.4680027,247.26,247.25,0.03]
[1758249808610,77.65449008,247.26,247.25,0.03]
[1758249810922,77.65449008,247.26,247.25,0.71]
[1758249810923,71.15105415,247.26,247.25,0.71]
[1758249811306,71.17105415,247.26,247.25,0.71]
[1758249813806,71.17105415,247.26,247.25,6.20927636]
[1758249814122,71.15105415,247.26,247.25,6.20927636]
[1758249815200,71.15105415,247.26,247.25,4.75448938]
[1758249815396,71.15105415,247.26,247.25,6.20927636]
[1758249816524,40.15105415,247.26,247.25,6.20927636]
[1758249816724,71.15105415,247.26,247.25,6.20927636]
[1758249816912,71.15105415,247.26,247.25,5.52927636]
[1758249818429,71.15105415,247.26,247.25,0.03]
[1758249819944,71.15105415,247.26,247.25,1.48478698]
[1758249820317,71.15105415,247.26,247.25,5.52927636]
[1758249820517,71.15105415,247.26,247.25,6.20927636]
[1758249821920,71.13105415,247.26,247.25,6.20927636]
[1758249822630,71.13105415,247.26,247.25,1.48478698]
[1758249822816,71.13105415,247.26,247.25,2.16478698]
[1758249823933,71.13105415,247.26,247.25,5.52927636]
[1758249826042,71.13105415,247.26,247.25,0.03]
[1758249826333,71.13105415,247.26,247.25,1.48478698]
[1758249828342,40.15105415,247.26,247.25,5.52927636]
[1758249828527,71.13105415,247.26,247.25,5.52927636]
[1758249831342,71.13105415,247.26,247.25,4.07448938]
[1758249831547,71.13105415,247.26,247.25,5.52927636]
[1758249831732,71.13105415,247.26,247.25,0.03]
[1758249832848,71.13105415,247.26,247.25,4.07448938]
[1758249833220,71.13105415,247.26,247.25,5.52927636]
[1758249833427,40.15105415,247.26,247.25,6.20927636]
[1758249833628,71.13105415,247.26,247.25,6.20927636]
[1758249835330,71.13105415,247.26,247.25,5.52927636]
[1758249836255,71.13105415,247.26,247.25,4.07448938]
[1758249836440,71.13105415,247.26,247.25,5.52927636]
[1758249842853,40.15105415,247.26,247.25,6.24927636]
[1758249843039,71.13105415,247.26,247.25,6.24927636]
[1758249843228,40.15105415,247.26,247.25,6.24927636]
[1758249843752,40.15105415,247.26,247.25,5.52927636]
[1758249843959,40.86105415,247.26,247.25,0.03]
[1758249844458,40.86105415,247.26,247.25,4.07448938]
[1758249847349,40.86105415,247.26,247.25,0.03]
[1758249848069,41.14537729,247.26,247.25,0.03]
[1758249852562,41.14537729,247.26,247.25,1.48478698]
[1758249852765,41.14537729,247.26,247.25,0.03]
[1758249853647,41.14537729,247.26,247.25,1.48478698]
[1758249855451,41.14537729,247.26,247.25,0.03]
[1758249857969,45.1897031,247.26,247.25,0.03]
[1758249859069,41.14537729,247.26,247.25,0.03]
[1758249860280,72.12537729,247.26,247.25,0.03]
[1758249866973,76.1697031,247.26,247.25,0.03]
[1758249868477,78.44226439,247.26,247.25,0.03]
[1758249875069,45.1897031,247.26,247.25,0.03]
[1758249875372,78.42226439,247.26,247.25,0.03]
[1758249875777,76.1497031,247.26,247.25,0.03]
[1758249879085,44.4797031,247.26,247.25,0.03]
[1758249879279,75.4397031,247.26,247.25,0.03]
[1758249880561,40.15105415,247.26,247.25,0.71]
[1758249880765,71.11105415,247.26,247.25,2.98256129]
[1758249881074,71.39537729,247.26,247.25,0.71]
[1758249881277,71.95321572,247.26,247.25,0.03]
[1758249881786,78.41226439,247.26,247.25,0.03]
[1758249887664,75.4397031,247.26,247.25,0.03]
[1758249888070,78.41226439,247.26,247.25,0.03]
[1758249893270,44.4797031,247.26,247.25,0.03]
[1758249893476,77.71226439,247.26,247.25,0.03]
[1758249893687,75.4397031,247.26,247.25,0.03]
[1758249894670,46.75226439,247.26,247.25,0.03]
[1758249894896,77.71226439,247.26,247.25,0.03]
[1758249895483,75.4397031,247.26,247.25,0.03]
[1758249895703,77.71226439,247.26,247.25,0.03]
[1758249895876,78.40226439,247.26,247.25,0.03]
[1758249900394,76.1297031,247.26,247.25,0.03]
[1758249900596,78.40226439,247.26,247.25,0.03]
[1758249901701,76.1297031,247.26,247.25,0.03]
[1758249902002,76.1297031,247.26,247.25,2.96256129]
[1758249902003,40.15105415,247.26,247.25,2.96256129]
[1758249902179,71.11105415,247.26,247.25,2.96256129]
[1758249902592,40.15105415,247.26,247.25,7.00705067]
[1758249902799,71.11105415,247.26,247.25,5.92512258]
[1758249904805,71.11105415,247.26,247.25,9.96961196]
[1758249905021,40.15105415,247.26,247.25,9.96961196]
[1758249905185,71.11105415,247.26,247.25,9.96961196]
[1758249906593,71.11105415,247.26,247.25,5.92512258]
[1758249907503,71.11105415,247.26,247.25,9.96961196]
[1758249908692,44.61559401,247.26,247.25,9.96961196]
[1758249910289,0.06,247.26,247.25,9.96961196]
[1758249916124,0.06,247.26,247.25,7.69705067]
[1758249916425,0.06,247.26,247.25,9.30961196]
[1758249916720,0.06,247.26,247.25,9.96961196]
[1758249919319,0.06,247.26,247.25,7.69705067]
[1758249919620,0.06,247.26,247.25,9.96961196]
[1758249919800,0.06,247.26,247.25,9.15084008]
[1758249920205,31.02,247.26,247.25,9.15084008]
[1758249923322,31.02,247.26,247.25,8.49084008]
[1758249923730,31.02,247.26,247.25,9.15084008]
[1758249924826,0.06,247.26,247.25,9.15084008]
[1758249928723,0.06,247.26,247.25,8.49084008]
[1758249928924,14.35559401,247.26,247.25,8.49084008]
[1758249930224,13.65559401,247.26,247.25,8.49084008]
[1758249930817,13.65559401,247.26,247.25,7.03705067]
[1758249931011,44.59559401,247.26,247.25,7.03705067]
[1758249931424,44.59559401,247.26,247.25,7.72705067]
[1758249931609,44.59559401,247.26,247.25,7.03705067]
[1758249931823,45.29559401,247.26,247.25,4.4463507]
[1758249932620,45.29559401,247.26,247.25,8.49084008]
[1758249933008,44.59559401,247.26,247.25,8.49084008]
[1758249933519,45.29559401,247.26,247.25,8.49084008]
[1758249934814,45.29559401,247.26,247.25,2.99256129]
[1758249935622,45.29559401,247.26,247.25,4.4463507]
[1758249937745,45.29559401,247.26,247.25,8.49084008]
[1758249937956,0.06,247.26,247.25,9.18084008]
[1758249941828,0.06,247.26,247.25,8.49084008]
[1758249942952,0.06,247.26,247.25,9.18084008]
[1758249945014,0.06,247.26,247.25,8.49084008]
[1758249945521,0.06,247.26,247.25,9.18084008]
[1758249948940,1e-08,247.26,247.25,9.18084008]
[1758249949118,0.16,247.29,247.25,9.18084008]
[1758249949119,0.16,247.29,247.28,26.0]
[1758249949323,1e-08,247.29,247.28,32.95157752]
[1758249949540,1e-08,247.29,247.28,33.64157752]
[1758249949741,1e-08,247.29,247.28,35.26078128]
[1758249950322,1e-08,247.29,247.28,33.80699187]
[1758249953944,1e-08,247.29,247.28,13.62214951]
[1758249954650,1e-08,247.29,247.28,7.80699187]
[1758249955067,1e-08,247.29,247.28,38.05699187]
[1758249955224,1e-08,247.29,247.28,7.11699187]
[1758249955759,0.71000001,247.29,247.28,7.11699187]
[1758249955934,0.71000001,247.29,247.28,33.11699187]
[1758249956132,0.71000001,247.29,247.28,31.66320246]
[1758249956333,0.71000001,247.29,247.28,33.11699187]
[1758249957048,0.71000001,247.29,247.28,7.11699187]
[1758249959147,1e-08,247.29,247.28,7.11699187]
[1758249960961,14.30559402,247.29,247.28,7.11699187]
[1758249961467,14.30559402,247.29,247.28,3.07299317]
[1758249964569,14.30559402,247.29,247.25,0.03]
[1758249964570,13.59559401,247.28,247.25,0.03]
[1758249964865,13.59559401,247.28,247.26,13.6012597]
[1758249965081,14.30559401,247.27,247.26,13.6012597]
[1758249966263,14.30559401,247.27,247.26,17.64558551]
[1758249966471,13.59559401,247.27,247.26,17.64558551]